[Event "Tournoi de MI de l'Echiquier du Pays de Bray"]
[Site "Gournay-en-Bray, France"]
[Date "2023.05.14"]
[Round "1.5"]
[White "ROSHKA, Yevgeniy"]
[Black "DUBESSAY, Bastien"]
[Result "1/2-1/2"]
[TimeControl "1h30/40 + 30 (30s/c)"]
[WhiteTitle "IM"]
[BlackTitle "FM"]
[WhiteFideId "14129558"]
[BlackFideId "650048"]
[WhiteElo "2508"]
[BlackElo "2283"]

1. d4 {[%clk 01:30:52]} {[%emt 00:00:06]} Nf6 {[%clk 01:30:47]} {[%emt
00:00:13]} 2. Nf3 {[%clk 01:31:11]} {[%emt 00:00:11]} d5 {[%clk 01:31:00]}
{[%emt 00:00:17]} 3. c4 {[%clk 01:27:20]} {[%emt 00:04:21]} e6 {[%clk
01:31:21]} {[%emt 00:00:08]} 4. g3 {[%clk 01:23:22]} {[%emt 00:04:29]} dxc4
{[%clk 01:31:01]} {[%emt 00:00:50]} 5. Bg2 {[%clk 01:23:04]} {[%emt 00:00:48]}
a6 {[%clk 01:30:31]} {[%emt 00:01:00]} 6. O-O {[%clk 01:22:42]} {[%emt
00:00:53]} Nc6 {[%clk 01:30:56]} {[%emt 00:00:06]} 7. e3 {[%clk 01:22:43]}
{[%emt 00:00:29]} Rb8 {[%clk 01:28:55]} {[%emt 00:02:30]} 8. Nfd2 {[%clk
01:21:49]} {[%emt 00:01:24]} e5 {[%clk 01:28:28]} {[%emt 00:00:57]} 9. Nxc4
{[%clk 01:21:54]} {[%emt 00:00:25]} exd4 {[%clk 01:25:27]} {[%emt 00:03:31]} 10.
exd4 {[%clk 01:21:20]} {[%emt 00:01:04]} Nxd4 {[%clk 01:23:22]} {[%emt
00:02:35]} 11. Re1+ {[%clk 01:21:33]} {[%emt 00:00:17]} Be7 {[%clk 01:19:00]}
{[%emt 00:04:51]} 12. Be3 {[%clk 01:15:18]} {[%emt 00:06:46]} Ne6 {[%clk
01:04:11]} {[%emt 00:15:20]} 13. Qxd8+ {[%clk 01:15:30]} Bxd8 {[%clk 01:04:11]}
14. f4 {[%clk 01:10:14]} {[%emt 00:11:03]} g6 {[%clk 00:57:36]} {[%emt
00:02:35]} 15. Ba7 {[%clk 01:10:25]} {[%emt 00:00:20]} Ra8 {[%clk 00:57:46]}
{[%emt 00:00:20]} 16. Bc5 {[%clk 01:10:52]} {[%emt 00:00:02]} Be7 {[%clk
00:55:54]} {[%emt 00:02:23]} 17. Bxe7 {[%clk 01:10:54]} {[%emt 00:00:29]} Kxe7
{[%clk 00:56:17]} {[%emt 00:00:06]} 18. f5 {[%clk 01:04:19]} {[%emt 00:07:05]}
gxf5 {[%clk 00:56:39]} {[%emt 00:00:07]} 19. Ne3 {[%clk 01:04:44]} {[%emt
00:00:04]} f4 {[%clk 00:50:57]} {[%emt 00:06:14]} 20. gxf4 {[%clk 01:04:34]}
{[%emt 00:00:40]} Kf8 {[%clk 00:51:10]} {[%emt 00:00:16]} 21. Nc3 {[%clk
00:59:43]} {[%emt 00:05:21]} Nxf4 {[%clk 00:47:06]} {[%emt 00:04:34]} 22. Rf1
{[%clk 00:59:27]} {[%emt 00:00:46]} Nxg2 {[%clk 00:46:58]} {[%emt 00:00:38]} 23.
Nxg2 {[%clk 00:59:47]} {[%emt 00:00:10]} Ne8 {[%clk 00:42:25]} {[%emt
00:05:03]} 24. Rae1 {[%clk 00:45:39]} {[%emt 00:14:38]} Bh3 {[%clk 00:37:53]}
{[%emt 00:05:02]} 25. Rf3 {[%clk 00:43:01]} {[%emt 00:03:08]} Bxg2 {[%clk
00:38:02]} {[%emt 00:00:21]} 26. Kxg2 {[%clk 00:43:29]} {[%emt 00:00:03]} Rg8+
{[%clk 00:38:15]} {[%emt 00:00:17]} 27. Kh1 {[%clk 00:36:23]} {[%emt 00:07:36]}
Rd8 {[%clk 00:27:45]} {[%emt 00:11:00]} 28. Ne4 {[%clk 00:35:56]} {[%emt
00:00:57]} b6 {[%clk 00:22:47]} {[%emt 00:05:28]} 29. Ref1 {[%clk 00:36:10]}
{[%emt 00:00:15]} Rd7 {[%clk 00:22:23]} {[%emt 00:00:55]} 30. Rh3 {[%clk
00:36:23]} {[%emt 00:00:17]} Rg4 {[%clk 00:18:42]} {[%emt 00:04:11]} 31. Ng3
{[%clk 00:35:32]} {[%emt 00:01:21]} f6 {[%clk 00:17:20]} {[%emt 00:01:51]} 32.
Nf5 {[%clk 00:33:28]} {[%emt 00:02:34]} Rg5 {[%clk 00:17:32]} {[%emt 00:00:18]}
33. Ng3 {[%clk 00:31:41]} {[%emt 00:02:16]} Rg4 {[%clk 00:17:05]} {[%emt
00:00:58]} 34. Nf5 {[%clk 00:32:09]} {[%emt 00:00:02]} Rg5 {[%clk 00:17:30]}
{[%emt 00:00:05]} 35. Ng3 {[%clk 00:32:38]} {[%emt 00:00:01]} a5 {[%clk
00:15:14]} {[%emt 00:02:47]} 36. Rh4 {[%clk 00:32:25]} {[%emt 00:00:43]} Rg6
{[%clk 00:14:29]} {[%emt 00:01:14]} 37. Re4 {[%clk 00:31:01]} {[%emt 00:01:54]}
Rd2 {[%clk 00:11:03]} {[%emt 00:03:56]} 38. Rh4 {[%clk 00:30:26]} {[%emt
00:01:06]} Rd7 {[%clk 00:11:24]} {[%emt 00:00:09]} 39. Re4 {[%clk 00:30:54]}
{[%emt 00:00:02]} Rd2 {[%clk 00:11:47]} {[%emt 00:00:06]} 40. Rh4 {[%clk
00:31:21]} {[%emt 00:00:04]} h6 {[%clk 00:06:29]} {[%emt 00:05:47]} 41. Nh5
{[%clk 00:27:40]} {[%emt 00:04:11]} Rxb2 {[%clk 00:25:37]} {[%emt 00:11:52]} 42.
Nf4 {[%clk 00:59:03]} {[%emt 00:00:08]} Rg8 {[%clk 00:25:43]} {[%emt 00:00:23]}
43. Rxh6 {[%clk 00:59:22]} {[%emt 00:00:10]} Kf7 {[%clk 00:24:11]} {[%emt
00:02:02]} 44. Rd1 {[%clk 00:58:03]} {[%emt 00:01:49]} Nd6 {[%clk 00:22:43]}
{[%emt 00:01:59]} 45. Rc1 {[%clk 00:55:17]} {[%emt 00:03:15]} c5 {[%clk
00:18:02]} {[%emt 00:05:11]} 46. Rd1 {[%clk 00:55:45]} {[%emt 00:00:02]} Nf5
{[%clk 00:15:13]} {[%emt 00:03:19]} 47. Rh7+ {[%clk 00:47:11]} {[%emt
00:09:04]} Rg7 {[%clk 00:15:24]} {[%emt 00:00:18]} 48. Rd7+ {[%clk 00:47:26]}
{[%emt 00:00:15]} Kg8 {[%clk 00:15:48]} {[%emt 00:00:07]} 49. Rhxg7+ {[%clk
00:47:52]} {[%emt 00:00:03]} Nxg7 {[%clk 00:16:12]} {[%emt 00:00:05]} 50. Nd5
{[%clk 00:48:15]} {[%emt 00:00:08]} Ne8 {[%clk 00:10:49]} {[%emt 00:05:53]} 51.
h4 {[%clk 00:47:15]} {[%emt 00:01:30]} Rxa2 {[%clk 00:08:10]} {[%emt 00:03:10]}
52. h5 {[%clk 00:47:15]} {[%emt 00:00:30]} Ra4 {[%clk 00:05:25]} {[%emt
00:03:15]} 53. Ne7+ {[%clk 00:46:17]} {[%emt 00:01:28]} Kf7 {[%clk 00:05:36]}
{[%emt 00:00:19]} 54. Ng6+ {[%clk 00:46:22]} {[%emt 00:00:25]} Ke6 {[%clk
00:05:59]} {[%emt 00:00:07]} 55. h6 {[%clk 00:40:44]} {[%emt 00:06:08]} Kxd7
{[%clk 00:06:16]} {[%emt 00:00:14]} 56. h7 {[%clk 00:41:12]} {[%emt 00:00:01]}
Ra1+ {[%clk 00:04:26]} {[%emt 00:02:19]} 57. Kg2 {[%clk 00:41:41]} {[%emt
00:00:01]} Ra2+ {[%clk 00:04:52]} {[%emt 00:00:05]} 58. Kg3 {[%clk 00:42:01]}
{[%emt 00:00:09]} Ra3+ {[%clk 00:05:13]} {[%emt 00:00:10]} 59. Kh4 {[%clk
00:35:35]} {[%emt 00:06:55]} Ra4+ {[%clk 00:05:31]} {[%emt 00:00:13]} 60. Kh3
{[%clk 00:35:38]} {[%emt 00:00:27]} Ra3+ {[%clk 00:05:59]} {[%emt 00:00:03]} 61.
Kh2 {[%clk 00:22:59]} {[%emt 00:13:08]} Ra2+ {[%clk 00:06:15]} {[%emt
00:00:14]} 62. Kg1 {[%clk 00:21:43]} {[%emt 00:01:45]} Ra1+ {[%clk 00:06:36]}
{[%emt 00:00:10]} 63. Kg2 {[%clk 00:22:11]} {[%emt 00:00:03]} Ra2+ {[%clk
00:07:01]} {[%emt 00:00:05]} 64. Kg3 {[%clk 00:22:38]} {[%emt 00:00:03]} Ra3+
{[%clk 00:07:25]} {[%emt 00:00:06]} 65. Kg4 {[%clk 00:22:36]} {[%emt 00:00:31]}
f5+ {[%clk 00:07:46]} {[%emt 00:00:10]} 66. Kh4 {[%clk 00:22:55]} {[%emt
00:00:09]} Ra4+ {[%clk 00:04:36]} {[%emt 00:03:41]} 67. Kg5 {[%clk 00:20:17]}
{[%emt 00:03:08]} Rg4+ {[%clk 00:04:46]} {[%emt 00:00:20]} 68. Kxf5 {[%clk
00:20:43]} {[%emt 00:00:04]} Nd6+ {[%clk 00:05:07]} {[%emt 00:00:10]} 69. Kxg4
{[%clk 00:21:09]} {[%emt 00:00:04]} Nf7 {[%clk 00:05:31]} {[%emt 00:00:06]} 70.
Kf5 {[%clk 00:21:37]} {[%emt 00:00:02]} Ke8 {[%clk 00:04:57]} {[%emt 00:01:03]}
71. Kf6 {[%clk 00:21:12]} {[%emt 00:00:55]} a4 {[%clk 00:04:25]} {[%emt
00:01:03]} 72. Ne5 {[%clk 00:21:34]} {[%emt 00:00:08]} Nh8 {[%clk 00:04:50]}
{[%emt 00:00:05]} 73. Kg7 {[%clk 00:21:23]} {[%emt 00:00:41]} a3 {[%clk
00:05:17]} {[%emt 00:00:04]} 74. Kxh8 {[%clk 00:21:48]} {[%emt 00:00:04]} Kf8
{[%clk 00:04:42]} {[%emt 00:01:05]} 75. Nd7+ {[%clk 00:22:08]} {[%emt
00:00:10]} Kf7 {[%clk 00:04:45]} {[%emt 00:00:27]} 76. Ne5+ {[%clk 00:22:36]}
{[%emt 00:00:02]} Kf8 {[%clk 00:05:11]} {[%emt 00:00:04]} 77. Nd7+ {[%clk
00:23:00]} {[%emt 00:00:06]} 1/2-1/2

[ePGN "0.1;DGT LiveChess/2.2.5"]

[Event "Tournoi de MI de l'Echiquier du Pays de Bray"]
[Site "Gournay-en-Bray, France"]
[Date "2023.05.15"]
[Round "2.1"]
[White "DGEBUADZE, Alexander"]
[Black "MOUHAMAD, Joachim"]
[Result "1-0"]
[TimeControl "1h30/40 + 30 (30s/c)"]
[WhiteTitle "GM"]
[BlackTitle "FM"]
[WhiteFideId "203882"]
[BlackFideId "656410"]
[WhiteElo "2435"]
[BlackElo "2238"]

1. e4 {[%clk 01:30:30]} {[%emt 00:00:28]} c5 {[%clk 01:30:38]} {[%emt
00:00:22]} 2. Nf3 {[%clk 01:30:49]} {[%emt 00:00:11]} Nc6 {[%clk 01:30:49]}
{[%emt 00:00:19]} 3. d4 {[%clk 01:31:09]} {[%emt 00:00:11]} cxd4 {[%clk
01:31:03]} {[%emt 00:00:16]} 4. Nxd4 {[%clk 01:31:33]} {[%emt 00:00:06]} Nf6
{[%clk 01:30:48]} {[%emt 00:00:45]} 5. Nc3 {[%clk 01:31:53]} {[%emt 00:00:10]}
d6 {[%clk 01:31:10]} {[%emt 00:00:08]} 6. Bc4 {[%clk 01:32:06]} {[%emt
00:00:18]} Qb6 {[%clk 01:31:12]} {[%emt 00:00:28]} 7. Nb3 {[%clk 01:31:06]}
{[%emt 00:01:30]} e6 {[%clk 01:31:27]} {[%emt 00:00:15]} 8. O-O {[%clk
01:31:22]} {[%emt 00:00:14]} a6 {[%clk 01:30:48]} {[%emt 00:01:09]} 9. a4
{[%clk 01:29:21]} {[%emt 00:02:31]} Qc7 {[%clk 01:31:01]} {[%emt 00:00:17]} 10.
Bg5 {[%clk 01:14:42]} {[%emt 00:15:08]} Be7 {[%clk 01:29:56]} {[%emt 00:01:36]}
11. a5 {[%clk 01:12:57]} {[%emt 00:02:16]} O-O {[%clk 01:29:54]} {[%emt
00:00:29]} 12. Be2 {[%clk 01:11:45]} {[%emt 00:01:43]} Bd7 {[%clk 01:29:38]}
{[%emt 00:00:47]} 13. Kh1 {[%clk 01:08:40]} {[%emt 00:03:35]} Rac8 {[%clk
01:27:45]} {[%emt 00:02:23]} 14. Ra4 {[%clk 01:01:21]} {[%emt 00:07:49]} Ne5
{[%clk 01:14:50]} {[%emt 00:13:25]} 15. Rd4 {[%clk 01:00:43]} {[%emt 00:01:07]}
Rfd8 {[%clk 01:01:01]} {[%emt 00:14:19]} 16. f4 {[%clk 00:49:19]} {[%emt
00:11:54]} Ng6 {[%clk 00:55:29]} {[%emt 00:06:02]} 17. f5 {[%clk 00:44:18]}
{[%emt 00:05:31]} Ne5 {[%clk 00:54:23]} {[%emt 00:01:36]} 18. Qd2 {[%clk
00:36:23]} {[%emt 00:08:26]} Bc6 {[%clk 00:50:51]} {[%emt 00:04:03]} 19. h3
{[%clk 00:29:04]} {[%emt 00:07:48]} Be8 {[%clk 00:34:18]} {[%emt 00:17:03]} 20.
Qe1 {[%clk 00:27:27]} {[%emt 00:02:06]} Nc6 {[%clk 00:29:31]} {[%emt 00:05:18]}
21. Rd3 {[%clk 00:26:31]} {[%emt 00:01:25]} Nxa5 {[%clk 00:29:08]} {[%emt
00:00:54]} 22. Nd4 {[%clk 00:25:35]} {[%emt 00:01:25]} Nc6 {[%clk 00:21:14]}
{[%emt 00:08:24]} 23. fxe6 {[%clk 00:24:55]} {[%emt 00:01:10]} Nxd4 {[%clk
00:21:43]} {[%emt 00:00:02]} 24. Bxf6 {[%clk 00:11:58]} {[%emt 00:13:26]} Bxf6
{[%clk 00:21:43]} {[%emt 00:00:30]} 25. Nd5 {[%clk 00:12:23]} {[%emt 00:00:06]}
Qxc2 {[%clk 00:17:27]} {[%emt 00:04:46]} 26. Nxf6+ {[%clk 00:11:55]} {[%emt
00:00:57]} gxf6 {[%clk 00:17:48]} {[%emt 00:00:09]} 27. Rxd4 {[%clk 00:08:43]}
{[%emt 00:03:43]} fxe6 {[%clk 00:17:58]} {[%emt 00:00:19]} 28. Rxf6 {[%clk
00:08:47]} {[%emt 00:00:25]} Bg6 {[%clk 00:15:47]} {[%emt 00:02:41]} 29. Rxe6
{[%clk 00:03:07]} {[%emt 00:06:10]} Qxb2 {[%clk 00:12:49]} {[%emt 00:03:29]} 30.
Rd1 {[%clk 00:03:16]} {[%emt 00:00:21]} Re8 {[%clk 00:06:11]} {[%emt 00:07:08]}
31. Bg4 {[%clk 00:03:38]} {[%emt 00:00:07]} Rcd8 {[%clk 00:03:03]} {[%emt
00:03:39]} 32. Qg3 {[%clk 00:02:21]} {[%emt 00:01:47]} Rxe6 {[%clk 00:02:33]}
{[%emt 00:01:00]} 33. Bxe6+ {[%clk 00:02:46]} {[%emt 00:00:04]} Kg7 {[%clk
00:02:57]} {[%emt 00:00:07]} 34. e5 {[%clk 00:02:53]} {[%emt 00:00:23]} a5
{[%clk 00:00:33]} {[%emt 00:02:54]} 35. Qg5 {[%clk 00:02:02]} {[%emt 00:01:20]}
Qb6 {[%clk 00:00:31]} {[%emt 00:00:33]} 36. exd6 {[%clk 00:01:34]} {[%emt
00:00:58]} a4 {[%clk 00:00:50]} {[%emt 00:00:11]} 37. Qe5+ {[%clk 00:01:40]}
{[%emt 00:00:24]} Kh6 {[%clk 00:01:00]} {[%emt 00:00:21]} 38. Rd4 {[%clk
00:01:59]} {[%emt 00:00:11]} 1-0

[Event "Tournoi de MI de l'Echiquier du Pays de "]
[Site "Gournay-en-Bray, France"]
[Date "2023.05.15"]
[Round "2.2"]
[White "LEFEBVRE, Hervé"]
[Black "ROSHKA, Yevgeniy"]
[Result "0-1"]
[WhiteElo "2161"]
[BlackElo "2508"]
[PlyCount "98"]
[EventDate "2023.??.??"]
[TimeControl "1/40+30:0"]
[WhiteClock "0:09:05"]
[BlackClock "0:12:04"]

1. e4 {[%emt 0:00:05]} g6 {[%emt 0:02:19]} 2. d4 {[%emt 0:00:44]} Bg7 {[%emt 0:
00:05]} 3. Nc3 {[%emt 0:00:27]} d6 {[%emt 0:00:06]} 4. f4 {[%emt 0:01:37]} a6 {
[%emt 0:00:06]} 5. Nf3 {[%emt 0:01:36]} b5 {[%emt 0:00:07]} 6. Bd3 {[%emt 0:01:
00]} Nd7 {[%emt 0:00:07]} 7. e5 {[%emt 0:02:35]} c5 {[%emt 0:00:35]} 8. Be4 {
[%emt 0:02:53]} Rb8 {[%emt 0:00:05]} 9. O-O {[%emt 0:00:10]} cxd4 {[%emt 0:00:
04]} 10. Nxd4 {[%emt 0:00:17]} dxe5 {[%emt 0:00:06]} 11. Nc6 {[%emt 0:00:28]}
Qb6+ {[%emt 0:00:06]} 12. Kh1 {[%emt 0:00:04]} Ngf6 {[%emt 0:01:04]} 13. Nxb8 {
[%emt 0:01:08]} Qxb8 {[%emt 0:00:14]} 14. fxe5 {[%emt 0:06:30]} Nxe4 {[%emt 0:
00:06]} 15. Nxe4 {[%emt 0:12:27]} Nxe5 {[%emt 0:04:29]} 16. Bf4 {[%emt 0:11:50]
} Qc7 {[%emt 0:45:41]} 17. a4 {[%emt 0:17:09]} O-O {[%emt 0:02:38]} 18. axb5 {
[%emt 0:00:09]} axb5 {[%emt 0:00:10]} 19. Qd4 {[%emt 0:05:18]} Qd7 {[%emt 0:10:
44]} 20. Bxe5 {[%emt 0:04:03]} Qxd4 {[%emt 0:00:06]} 21. Bxd4 {[%emt 0:00:04]}
Bxd4 {[%emt 0:00:04]} 22. c3 {[%emt 0:02:29]} Bb6 {[%emt 0:00:58]} 23. Ra8 {
[%emt 0:01:16]} Bb7 {[%emt 0:01:04]} 24. Rxf8+ {[%emt 0:00:09]} Kxf8 {[%emt 0:
00:16]} 25. Re1 {[%emt 0:11:30]} Bd5 {[%emt 0:08:27]} 26. Ng5 {[%emt 0:08:01]}
f6 {[%emt 0:03:04]} 27. Ne6+ {[%emt 0:07:48]} Kf7 {[%emt 0:00:13]} 28. Nd4 {
[%emt 0:00:05]} b4 {[%emt 0:00:15]} 29. Rc1 {[%emt 0:00:51]} bxc3 {[%emt 0:02:
13]} 30. bxc3 {[%emt 0:00:04]} Bc4 {[%emt 0:00:59]} 31. Rb1 {[%emt 0:00:50]}
Bc5 {[%emt 0:02:30]} 32. Rb7 {[%emt 0:00:14]} Bd6 {[%emt 0:00:06]} 33. Nb5 {
[%emt 0:01:17]} Be5 {[%emt 0:00:08]} 34. Nd4 {[%emt 0:00:04]} f5 {[%emt 0:02:
24]} 35. Rb4 {[%emt 0:00:10]} Bd3 {[%emt 0:01:10]} 36. Nf3 {[%emt 0:01:36]} Bf6
{[%emt 0:00:53]} 37. c4 {[%emt 0:00:12]} Be4 {[%emt 0:01:35]} 38. c5 {[%emt 0:
00:29]} Ke6 {[%emt 0:00:06]} 39. Rc4 {[%emt 0:01:44]} Kd5 {[%emt 0:01:29]} 40.
Rc1 {[%emt 0:00:27]} Kc6 {[%emt 0:00:37]} 41. Kg1 {[%emt 0:04:15]} h6 {[%emt 0:
03:45]} 42. Kf2 {[%emt 0:00:41]} Bb2 {[%emt 0:07:19]} 43. Rc4 {[%emt 0:07:21]}
g5 {[%emt 0:14:06]} 44. Rb4 {[%emt 0:06:12]} Bf6 {[%emt 0:00:08]} 45. Nd2 {
[%emt 0:03:16]} Kxc5 {[%emt 0:09:50]} 46. Rxe4 {[%emt 0:00:34]} fxe4 {[%emt 0:
00:06]} 47. Nxe4+ {[%emt 0:00:04]} Kd4 {[%emt 0:00:06]} 48. Kf3 {[%emt 0:04:13]
} g4+ {[%emt 0:00:29]} 49. Kf4 {[%emt 0:00:03]} Be5+ {[%emt 0:00:03]} 0-1

[Event "Tournoi de MI de l'Echiquier du Pays de Bray"]
[Site "Gournay-en-Bray, France"]
[Date "2023.05.15"]
[Round "2.3"]
[White "DECUIGNIERE, Tom"]
[Black "DEFROMONT, Benjamin"]
[Result "0-1"]
[TimeControl "1h30/40 + 30 (30s/c)"]
[WhiteTitle "FM"]
[BlackTitle "FM"]
[WhiteFideId "26093820"]
[BlackFideId "36068829"]
[WhiteElo "2396"]
[BlackElo "2347"]

1. Nf3 {[%clk 01:30:56]} {[%emt 00:00:03]} c5 {[%clk 01:30:51]} {[%emt
00:00:10]} 2. c4 {[%clk 01:30:50]} {[%emt 00:00:36]} Nc6 {[%clk 01:31:14]}
{[%emt 00:00:08]} 3. b3 {[%clk 01:29:20]} {[%emt 00:02:00]} e5 {[%clk
01:21:28]} {[%emt 00:10:15]} 4. Bb2 {[%clk 01:26:43]} {[%emt 00:03:07]} d6
{[%clk 01:21:51]} {[%emt 00:00:07]} 5. e3 {[%clk 01:26:04]} {[%emt 00:01:09]}
g5 {[%clk 01:11:35]} {[%emt 00:10:46]} 6. h3 {[%clk 01:15:14]} {[%emt
00:11:20]} Bg7 {[%clk 01:03:13]} {[%emt 00:08:53]} 7. Nc3 {[%clk 01:11:18]}
{[%emt 00:04:25]} h6 {[%clk 00:59:06]} {[%emt 00:04:37]} 8. Nd5 {[%clk
00:50:18]} {[%emt 00:21:31]} Nge7 {[%clk 00:55:14]} {[%emt 00:04:22]} 9. Nxe7
{[%clk 00:43:33]} {[%emt 00:07:15]} Qxe7 {[%clk 00:54:44]} {[%emt 00:01:00]} 10.
d3 {[%clk 00:35:31]} {[%emt 00:08:32]} O-O {[%clk 00:53:14]} {[%emt 00:01:59]}
11. g4 {[%clk 00:32:52]} {[%emt 00:03:09]} f5 {[%clk 00:51:38]} {[%emt
00:02:06]} 12. Nd2 {[%clk 00:32:11]} {[%emt 00:01:11]} e4 {[%clk 00:39:42]}
{[%emt 00:12:26]} 13. Bxg7 {[%clk 00:29:40]} {[%emt 00:03:01]} Qxg7 {[%clk
00:40:06]} {[%emt 00:00:06]} 14. gxf5 {[%clk 00:22:20]} {[%emt 00:07:50]} exd3
{[%clk 00:34:49]} {[%emt 00:05:46]} 15. Bxd3 {[%clk 00:22:04]} {[%emt
00:00:46]} Ne5 {[%clk 00:33:24]} {[%emt 00:01:56]} 16. Be2 {[%clk 00:13:26]}
{[%emt 00:09:09]} Bxf5 {[%clk 00:32:20]} {[%emt 00:01:33]} 17. Rc1 {[%clk
00:13:53]} {[%emt 00:00:03]} Rae8 {[%clk 00:27:33]} {[%emt 00:05:17]} 18. Rh2
{[%clk 00:11:58]} {[%emt 00:02:25]} Nd3+ {[%clk 00:19:07]} {[%emt 00:08:56]} 19.
Bxd3 {[%clk 00:12:24]} {[%emt 00:00:05]} Bxd3 {[%clk 00:19:33]} {[%emt
00:00:04]} 20. Nf1 {[%clk 00:12:43]} {[%emt 00:00:10]} Be4 {[%clk 00:14:46]}
{[%emt 00:05:18]} 21. Ng3 {[%clk 00:12:57]} {[%emt 00:00:15]} Qe5 {[%clk
00:14:20]} {[%emt 00:00:56]} 22. h4 {[%clk 00:12:14]} {[%emt 00:01:13]} Rxf2
{[%clk 00:13:04]} {[%emt 00:01:47]} 23. Rxf2 {[%clk 00:11:55]} {[%emt
00:00:49]} Qxg3 {[%clk 00:10:08]} {[%emt 00:03:26]} 24. Ke2 {[%clk 00:12:13]}
{[%emt 00:00:13]} g4 {[%clk 00:05:28]} {[%emt 00:05:10]} 25. Qe1 {[%clk
00:09:54]} {[%emt 00:02:48]} Bf3+ {[%clk 00:05:15]} {[%emt 00:00:44]} 26. Kd2
{[%clk 00:10:19]} {[%emt 00:00:05]} Qe5 {[%clk 00:04:34]} {[%emt 00:01:10]} 27.
Rc3 {[%clk 00:09:49]} {[%emt 00:01:00]} d5 {[%clk 00:04:04]} {[%emt 00:01:00]}
28. cxd5 {[%clk 00:09:45]} {[%emt 00:00:34]} Qxd5+ {[%clk 00:03:22]} {[%emt
00:01:12]} 29. Rd3 {[%clk 00:07:50]} {[%emt 00:02:24]} Qe5 {[%clk 00:02:31]}
{[%emt 00:01:22]} 30. Qc1 {[%clk 00:06:52]} {[%emt 00:01:28]} b5 {[%clk
00:01:18]} {[%emt 00:01:43]} 31. Qc3 {[%clk 00:02:31]} {[%emt 00:04:51]} Qg3
{[%clk 00:01:41]} {[%emt 00:00:06]} 32. Ke1 {[%clk 00:02:45]} {[%emt 00:00:15]}
Qg1+ {[%clk 00:00:58]} {[%emt 00:01:13]} 33. Rf1 {[%clk 00:03:12]} {[%emt
00:00:04]} Qh2 {[%clk 00:01:20]} {[%emt 00:00:07]} 34. Qd2 {[%clk 00:02:02]}
{[%emt 00:01:40]} Qxh4+ {[%clk 00:00:57]} {[%emt 00:00:53]} 35. Qf2 {[%clk
00:02:30]} {[%emt 00:00:03]} Qf6 {[%clk 00:00:49]} {[%emt 00:00:37]} 36. Qg3
{[%clk 00:01:02]} {[%emt 00:01:58]} c4 {[%clk 00:00:36]} {[%emt 00:00:44]} 37.
Rxf3 {[%clk 00:00:56]} {[%emt 00:00:35]} Qxf3 {[%clk 00:00:44]} {[%emt
00:00:21]} 38. Qxf3 {[%clk 00:01:22]} {[%emt 00:00:04]} gxf3 {[%clk 00:01:11]}
{[%emt 00:00:04]} 39. bxc4 {[%clk 00:00:48]} {[%emt 00:01:04]} bxc4 {[%clk
00:01:36]} {[%emt 00:00:05]} 40. Rc3 {[%clk 00:00:41]} {[%emt 00:00:37]} Rc8
{[%clk 00:00:34]} {[%emt 00:01:31]} 41. Kf2 {[%clk 00:01:04]} {[%emt 00:00:07]}
Kf7 {[%clk 00:30:36]} {[%emt 00:00:59]} 42. Kxf3 {[%clk 00:32:30]} {[%emt
00:00:04]} Ke6 {[%emt 00:11:14]} 43. Ke4 {[%clk 00:32:34]} {[%emt 00:00:25]} h5
{[%clk 00:20:01]} {[%emt 00:00:21]} 44. Kd4 {[%clk 00:25:31]} {[%emt 00:07:33]}
h4 {[%clk 00:20:01]} {[%emt 00:00:31]} 45. e4 {[%clk 00:25:32]} {[%emt
00:00:29]} Rd8+ {[%clk 00:20:09]} {[%emt 00:00:21]} 46. Kc5 {[%clk 00:25:58]}
{[%emt 00:00:04]} Ke5 {[%clk 00:20:18]} {[%emt 00:00:22]} 47. Kc6 {[%clk
00:24:45]} {[%emt 00:01:44]} Kd4 {[%clk 00:16:04]} {[%emt 00:04:44]} 48. Rc1
{[%clk 00:25:10]} {[%emt 00:00:05]} Re8 {[%clk 00:16:20]} {[%emt 00:00:14]} 49.
Rd1+ {[%clk 00:24:59]} {[%emt 00:00:40]} Ke3 {[%clk 00:16:23]} {[%emt
00:00:27]} 50. Re1+ {[%clk 00:22:33]} {[%emt 00:02:57]} Kd2 {[%clk 00:16:37]}
{[%emt 00:00:15]} 51. Rh1 {[%clk 00:22:59]} {[%emt 00:00:04]} c3 {[%clk
00:14:47]} {[%emt 00:02:20]} 52. Rh2+ {[%clk 00:22:34]} {[%emt 00:00:55]} Kd3
{[%clk 00:15:03]} {[%emt 00:00:14]} 53. Rh3+ {[%clk 00:22:27]} {[%emt
00:00:37]} Kd4 {[%clk 00:15:23]} {[%emt 00:00:11]} 54. e5 {[%clk 00:22:20]}
{[%emt 00:00:37]} Rxe5 {[%clk 00:15:11]} {[%emt 00:00:42]} 55. Rxh4+ {[%clk
00:22:46]} {[%emt 00:00:04]} Kd3 {[%clk 00:15:01]} {[%emt 00:00:39]} 56. Kd6
{[%clk 00:22:38]} {[%emt 00:00:38]} Re3 {[%clk 00:14:35]} {[%emt 00:00:57]} 57.
Kc5 {[%clk 00:22:33]} {[%emt 00:00:36]} c2 {[%clk 00:14:53]} {[%emt 00:00:11]}
58. Rd4+ {[%clk 00:22:31]} {[%emt 00:00:32]} Ke2 {[%clk 00:15:15]} {[%emt
00:00:08]} 59. Rc4 {[%clk 00:22:47]} {[%emt 00:00:15]} Kd2 {[%clk 00:15:40]}
{[%emt 00:00:05]} 60. Kd4 {[%clk 00:23:11]} {[%emt 00:00:07]} Rd3+ {[%clk
00:15:33]} {[%emt 00:00:37]} 0-1